bitfinex/quotes_ETHUSD_20240715
["timestamp","ask_amount","ask_price","bid_price","bid_amount"]
[1721048250899,0.62708237,3348.0,3347.9,5.97388]
[1721048251070,0.75508064,3348.0,3347.9,10.05482]
[1721048251277,0.62708237,3348.0,3347.9,10.05482]
[1721048251499,0.62708237,3348.1,3348.0,5.9737]
[1721048251679,0.62708237,3348.1,3348.0,7.0677]
[1721048252063,0.75499597,3348.1,3348.0,7.0677]
[1721048252273,0.62708237,3348.2,3348.1,5.97352]
[1721048252476,0.62708237,3348.2,3348.1,7.06752]
[1721048252713,1.25302455,3348.6,3348.5,2.98634]
[1721048252924,1.83989962,3348.6,3348.5,2.98634]
[1721048253432,1.06724157,3348.6,3348.5,7.06675]
[1721048254407,0.12785751,3348.6,3348.5,7.06675]
[1721048254780,1.25302455,3348.8,3348.7,2.98623]
[1721048254985,1.83935565,3348.8,3348.7,2.98623]
[1721048255394,0.5863311,3348.8,3348.7,2.98623]
[1721048255780,1.06638472,3348.8,3348.7,2.98623]
[1721048257387,0.12772332,3348.8,3348.7,2.98623]
[1721048257990,0.12754506,3348.8,3348.7,2.98623]
[1721048258321,3.38233734,3348.9,3348.7,2.98623]
[1721048258481,0.75281755,3348.8,3348.4,2.98644]
[1721048258690,0.12754548,3348.7,3348.4,2.98644]
[1721048258889,0.62527207,3348.8,3348.4,2.98644]
[1721048259092,0.75279002,3348.7,3348.4,2.98644]
[1721048259292,0.62527207,3348.8,3348.4,2.98644]
[1721048259492,0.12749692,3348.7,3348.4,2.98644]
[1721048259698,0.62527207,3348.8,3348.5,2.9864]
[1721048260024,0.12749131,3348.7,3348.5,4.0804]
[1721048260211,1.15111799,3348.8,3348.5,4.0804]
[1721048260412,0.62527207,3348.8,3348.7,7.06646]
[1721048260617,0.62527207,3349.0,3348.8,2.98614]
[1721048260822,0.62527207,3349.1,3348.9,1.094]
[1721048261001,2.88537207,3349.2,3349.0,2.98596]
[1721048261205,0.12739115,3349.1,3349.0,2.98596]
[1721048261548,2.88537207,3349.2,3349.0,2.98596]
[1721048263113,2.2601,3349.2,3349.0,2.98596]
[1721048264014,2.2601,3349.2,3349.0,2.98591]
[1721048264515,2.2601,3349.2,3349.1,4.07987]
[1721048265421,0.62446074,3349.4,3349.3,2.98569]
[1721048265620,7.4,3349.8,3349.6,2.98543]
[1721048265621,2.94876074,3349.8,3349.6,2.98543]
[1721048265843,2.02950343,3350.2,3349.7,4.07934]
[1721048265844,0.62446074,3349.9,3349.7,4.07934]
[1721048266138,0.62446074,3350.1,3349.9,2.98516]
[1721048266341,2.94876074,3350.2,3349.9,2.98516]
[1721048266543,1.1400107,3350.1,3349.9,5.97027]
[1721048266710,0.38854519,3350.1,3349.9,5.97027]
[1721048267143,2.94876074,3350.2,3349.9,5.97027]
[1721048267519,2.3243,3350.2,3349.9,2.98511]
[1721048267745,2.94780238,3350.2,3349.8,2.9852]
[1721048267929,2.3429,3350.1,3349.4,2.98553]
[1721048268130,2.3429,3350.0,3349.6,2.98542]
[1721048268308,0.41350344,3349.9,3349.6,2.98542]
[1721048269745,0.41350344,3349.9,3349.4,2.98553]
[1721048270444,0.41350344,3349.9,3349.6,2.98541]
[1721048270658,2.3429,3350.0,3349.6,2.98541]
[1721048271172,2.3429,3350.0,3349.4,2.98553]
[1721048271379,2.3429,3350.0,3349.4,5.97108]
[1721048271671,2.3429,3350.0,3349.5,2.98546]
[1721048271868,2.3429,3350.0,3349.6,2.98541]
[1721048273349,2.3429,3350.0,3349.6,5.97076]
[1721048273761,2.3429,3350.0,3349.7,2.98532]
[1721048275247,2.3429,3350.0,3349.8,2.9852]
[1721048276339,2.3429,3350.0,3349.6,2.98539]
[1721048277079,2.3429,3350.0,3349.8,5.97038]
[1721048277379,2.3429,3350.0,3349.9,2.98516]
[1721048280098,2.98464,3350.5,3350.0,2.98504]
[1721048280099,2.4335,3350.5,3350.0,2.98504]
[1721048280321,2.4335,3350.5,3350.3,2.98479]
[1721048280578,2.4335,3350.5,3350.4,2.98471]
[1721048280798,2.2862,3351.1,3350.7,2.98437]
[1721048280949,2.2862,3351.1,3350.8,2.98435]
[1721048283877,2.2862,3351.1,3350.7,2.98437]
[1721048285385,2.2862,3351.1,3350.7,5.96873]
[1721048285883,2.2862,3351.1,3350.7,2.98436]
[1721048286280,2.4993,3351.6,3351.0,2.98418]
[1721048286486,0.55347307,3351.5,3351.0,2.98418]
[1721048286671,2.4993,3351.6,3351.2,2.98399]
[1721048287590,2.4993,3351.6,3351.3,2.98389]
[1721048287997,2.4993,3351.6,3351.2,2.98399]
[1721048290916,2.4993,3351.6,3351.0,2.98416]
[1721048290917,2.4993,3351.6,3350.9,2.98424]
[1721048291110,2.4536,3351.4,3350.8,2.98435]
[1721048291312,2.4536,3351.2,3350.4,2.98468]
[1721048291912,2.4536,3351.2,3350.6,2.98448]
[1721048292121,2.4536,3351.2,3350.7,2.98444]
[1721048296218,2.4536,3351.2,3351.0,2.98416]
[1721048301904,2.4536,3351.2,3351.0,5.96827]
[1721048302719,2.4536,3351.2,3351.0,2.98411]
[1721048304092,2.2935,3351.5,3351.0,2.98411]
[1721048305122,2.91650642,3351.5,3351.0,2.98411]
[1721048305330,2.91650642,3351.5,3351.2,2.98399]
[1721048305527,2.2935,3351.5,3351.2,2.98399]
[1721048305728,0.12666882,3351.4,3351.1,2.98406]
[1721048305906,2.91650642,3351.5,3351.1,2.98406]
[1721048306231,2.91650642,3351.5,3351.1,2.98401]
[1721048306539,0.12670741,3351.4,3351.2,2.98398]
[1721048306836,2.91650642,3351.5,3351.2,2.98398]
[1721048307739,2.91650642,3351.5,3351.0,2.9841]
[1721048307935,0.12672766,3351.4,3351.0,2.9841]
[1721048308114,0.62300642,3351.4,3351.1,2.98406]
[1721048308318,0.62300642,3351.3,3351.1,2.98406]
[1721048309358,0.62300642,3351.4,3351.1,2.98406]
[1721048309556,0.74979595,3351.4,3351.1,2.98406]
[1721048310322,0.74979595,3351.3,3351.1,4.07506]
[1721048310641,0.62300642,3351.4,3351.2,2.984]
[1721048310840,0.74981713,3351.4,3351.3,1.091]
[1721048311440,0.12681071,3351.4,3351.3,1.091]
[1721048311810,1.06132034,3351.4,3351.3,1.091]
[1721048312237,0.93450963,3351.4,3351.3,1.091]
[1721048312507,0.12686912,3351.4,3351.3,1.091]
[1721048312722,2.2935,3351.5,3351.3,1.091]
[1721048312922,1.06340622,3351.4,3351.3,1.091]
[1721048314413,1.06340622,3351.4,3351.2,2.984]
[1721048314623,0.12686449,3351.3,3351.2,2.984]
[1721048315438,0.93654173,3351.4,3351.2,2.984]
[1721048315636,1.06376562,3351.4,3351.2,2.984]
[1721048315849,0.12690788,3351.3,3351.2,2.984]
[1721048316455,0.93685774,3351.3,3351.1,1.091]
[1721048316759,0.58411609,3351.4,3350.7,7.0598]
[1721048316760,3.40306562,3351.2,3350.7,7.0598]
[1721048316925,0.62476909,3351.0,3350.7,4.07539]
[1721048317119,0.75167697,3350.9,3350.8,2.98436]
[1721048317830,0.62476909,3350.9,3350.8,2.98436]
[1721048318640,0.75167697,3350.9,3350.8,2.98436]
[1721048318839,2.3393,3351.2,3350.8,2.98436]
[1721048319143,0.6251244,3350.9,3350.8,2.98436]
[1721048319327,0.12706378,3350.9,3350.8,2.98436]
[1721048319827,0.9376866,3351.0,3350.8,2.98436]
[1721048320063,0.12706378,3350.9,3350.8,2.98436]
[1721048320220,0.12706378,3350.9,3350.8,4.07536]
[1721048320420,1.06475038,3350.9,3350.8,4.07536]
[1721048321074,0.9376866,3350.9,3350.8,4.07536]
[1721048321649,1.06475038,3350.9,3350.8,4.07536]
[1721048321848,0.9376866,3350.9,3350.8,4.07536]
[1721048322379,0.93872651,3351.2,3351.1,2.98409]
[1721048322553,0.93872651,3351.2,3351.1,4.07509]
[1721048322757,0.93872651,3351.2,3349.6,2.98534]
[1721048322758,3.3861367,3351.2,3350.1,2.2959]
[1721048322974,0.93871244,3350.9,3350.8,1.091]
[1721048323274,1.25161659,3351.0,3350.8,4.07536]
[1721048323680,0.93916909,3350.9,3350.8,4.07536]
[1721048323881,0.58538255,3350.9,3350.8,4.07536]
[1721048324480,1.37874085,3350.9,3350.7,2.98444]
[1721048324645,1.56452074,3351.0,3350.7,2.98444]
[1721048324646,1.83822621,3350.8,3350.7,2.98444]
[1721048324847,1.83822621,3350.8,3350.7,4.07544]
[1721048325292,1.83843373,3350.8,3350.7,4.07544]
[1721048325496,0.58567591,3350.8,3350.7,4.07544]
[1721048325852,0.12741762,3350.8,3350.7,4.07544]
[1721048326182,1.69452657,3350.8,3350.5,2.98455]
[1721048326382,1.25378626,3350.6,3350.5,2.98455]
[1721048326608,1.83946217,3350.6,3350.5,2.98455]
[1721048326898,1.83943499,3350.6,3350.5,2.98455]
[1721048327772,1.83943499,3350.6,3350.5,2.98462]
[1721048328111,1.83943499,3350.6,3350.4,1.091]
[1721048328389,0.58567591,3350.5,3350.0,1.091]
[1721048328695,1.56735998,3350.3,3350.2,4.07584]
[1721048328890,2.15318033,3350.3,3350.2,4.07584]
[1721048329067,0.58582035,3350.3,3350.2,4.07584]
[1721048329387,1.83934553,3350.3,3350.2,4.07584]
[1721048329589,1.83934553,3350.3,3349.4,0.51654355]
[1721048329590,2.91732035,3350.3,3349.4,0.51654355]
[1721048329787,1.56735998,3350.1,3349.9,4.07607]
[1721048329967,0.58582035,3350.0,3349.9,4.07607]
[1721048330163,0.12756206,3350.0,3349.9,4.07607]
[1721048330563,0.12756206,3350.0,3349.9,7.06123]
[1721048330564,1.38062661,3350.0,3349.9,7.06123]
[1721048330788,1.06731008,3350.0,3349.9,7.06123]
[1721048331304,0.62648615,3350.2,3349.9,1.091]
[1721048331528,0.62648615,3350.2,3350.1,7.06096]
[1721048331679,0.62648615,3350.3,3350.2,2.98489]
[1721048332007,0.62648615,3350.3,3350.2,7.61078]
[1721048332180,0.75386337,3350.3,3350.2,7.61078]
[1721048334699,3.09106337,3350.3,3350.2,2.98489]
[1721048334880,0.58599399,3350.3,3350.2,2.98489]
[1721048335066,1.25306455,3350.5,3350.3,2.9848]
[1721048335271,0.12742045,3350.4,3350.3,4.0758]
[1721048335491,0.45858296,3350.5,3350.3,4.0758]
[1721048335775,0.12745517,3350.4,3350.3,4.0758]
[1721048336205,1.69360378,3350.4,3350.3,2.9848]
[1721048336402,2.2516,3350.3,3349.9,2.98513]
[1721048336619,1.25278144,3350.1,3349.7,2.98528]
[1721048336823,0.93966523,3349.8,3349.7,2.98528]
[1721048336978,1.83881957,3349.8,3349.7,5.97055]
[1721048337316,1.25278144,3349.8,3349.7,5.97055]
[1721048337519,1.25278144,3349.9,3349.8,2.98525]
[1721048337812,0.58606921,3349.9,3349.8,2.98525]
[1721048338186,0.93934258,3349.9,3349.8,2.98525]
[1721048338505,1.06682622,3349.9,3349.8,2.98525]
[1721048340308,0.12748364,3349.9,3349.8,2.98525]
[1721048340720,1.06682622,3349.9,3349.8,2.98525]
[1721048340887,1.06676373,3349.9,3349.8,2.98525]
[1721048341084,0.12742115,3349.9,3349.8,2.98525]
[1721048341708,0.62587995,3349.9,3349.8,5.9705]
[1721048341907,0.7533011,3349.9,3349.8,5.9705]
[1721048342421,0.12742115,3349.9,3349.8,5.9705]
[1721048342724,0.62573634,3349.9,3349.8,5.9705]
[1721048343022,0.75315749,3349.9,3349.8,5.9705]
[1721048343814,0.75309416,3349.9,3349.8,5.9705]
[1721048345026,1.25278144,3350.2,3349.9,5.97032]
[1721048345027,0.62573634,3350.0,3349.9,5.97032]
[1721048345327,0.7530408,3350.0,3349.9,5.97032]
[1721048346634,0.62573634,3350.1,3350.0,2.98507]
[1721048346861,0.75300592,3350.1,3350.0,2.98507]
[1721048347160,0.93814887,3350.2,3350.1,2.98492]
[1721048347470,1.06543407,3350.2,3350.1,2.98492]
[1721048350056,0.1272852,3350.2,3350.1,2.98492]
[1721048350240,2.3135,3350.8,3350.2,2.98489]
[1721048350449,2.3135,3350.8,3350.3,2.9848]
[1721048350450,0.93799148,3350.4,3350.3,2.9848]
[1721048350840,1.06522381,3350.4,3350.3,2.9848]
[1721048351162,1.25065531,3350.6,3350.3,5.9696]
[1721048351163,0.62531877,3350.5,3350.3,5.9696]
[1721048351371,0.62531877,3350.5,3349.9,2.621]
[1721048351372,0.62531877,3350.6,3350.5,5.96924]
[1721048351572,0.62531877,3350.7,3350.6,2.98454]
[1721048351773,0.75241752,3350.7,3350.6,2.98454]
[1721048351974,1.06509023,3350.7,3350.6,2.98454]
[1721048352756,0.58485031,3350.7,3350.6,2.98454]
[1721048352939,1.06510105,3350.7,3350.6,2.98454]
[1721048353576,1.06517366,3350.7,3350.6,2.98454]
[1721048353785,0.58494218,3350.7,3350.6,2.98454]
[1721048354070,1.06522633,3350.7,3350.6,2.98454]
[1721048354571,0.58497312,3350.7,3350.6,2.98454]
[1721048354779,1.06526268,3350.7,3350.6,2.98454]
[1721048354993,1.06526268,3350.7,3350.4,2.98469]
[1721048355290,0.62539745,3350.5,3350.4,2.98471]
[1721048355453,0.75256881,3350.5,3350.4,2.98471]
[1721048355784,0.62539745,3350.5,3350.4,2.98471]
[1721048355983,0.93809618,3350.6,3350.5,2.98462]
[1721048356287,1.06529516,3350.6,3350.5,2.98462]
[1721048356983,1.0654324,3350.6,3350.5,2.98462]
[1721048357137,2.3135,3350.8,3350.5,2.98462]
[1721048357336,0.93822495,3350.6,3350.5,2.98462]
[1721048357781,1.06543235,3350.6,3350.5,2.98462]
[1721048358183,0.93822495,3350.6,3350.5,2.98462]
[1721048358388,1.06543235,3350.6,3350.5,2.98462]
[1721048358896,0.93822495,3350.6,3350.5,2.98462]
[1721048359099,0.1272074,3350.6,3350.5,2.98462]
[1721048359691,0.62560691,3350.6,3350.5,2.98462]
[1721048360098,0.12721081,3350.6,3350.5,2.98462]
[1721048361428,0.62566091,3350.6,3350.5,2.98462]
[1721048361605,0.75287172,3350.6,3350.5,2.98462]
[1721048361810,0.12721081,3350.6,3350.5,2.98462]
[1721048363252,0.93842427,3350.6,3350.5,2.98462]
[1721048365905,1.06567489,3350.6,3350.5,2.98462]
[1721048366110,0.93842427,3350.6,3350.5,2.98462]
[1721048366713,1.06569808,3350.6,3350.5,2.98462]
[1721048366907,0.93842427,3350.6,3350.5,2.98462]
[1721048367118,1.06611253,3350.6,3350.5,2.98462]
[1721048369401,0.93884093,3350.6,3350.5,2.98462]
[1721048369606,1.06613804,3350.6,3350.5,2.98462]
[1721048370039,0.93884093,3350.6,3350.5,2.98462]
[1721048370350,0.58558377,3350.6,3350.5,2.98462]
[1721048370713,1.83737168,3350.7,3350.5,2.98462]
[1721048371052,0.58558377,3350.6,3350.5,2.98462]
[1721048371812,1.83737168,3350.7,3350.5,2.98462]
[1721048372031,0.58558377,3350.6,3350.5,2.98462]
[1721048372422,1.25178791,3350.7,3350.6,2.98454]
[1721048372601,1.83748557,3350.7,3350.6,2.98454]
[1721048373039,1.7101525,3350.7,3350.6,2.98454]
[1721048373244,0.58570138,3350.7,3350.6,2.98454]
[1721048373452,1.37968972,3350.7,3350.6,2.98454]
[1721048373604,0.5857014,3350.7,3350.6,2.98454]
[1721048373803,1.83807391,3350.7,3350.6,2.98454]
[1721048374101,1.83807425,3350.7,3350.6,2.98454]
[1721048374517,0.5857014,3350.7,3350.6,2.98454]
[1721048374717,1.83806172,3350.7,3350.6,2.98454]
[1721048375205,0.5857014,3350.7,3350.4,2.98463]
[1721048375404,0.93926664,3350.5,3350.4,2.98463]
[1721048375639,0.58572107,3350.5,3350.4,2.98463]
[1721048375804,1.25235553,3350.5,3350.4,2.98463]
[1721048376002,2.4596,3350.4,3350.1,2.98496]
[1721048376210,1.83822877,3350.3,3350.1,2.98496]
[1721048376475,1.83822877,3350.3,3350.1,2.98491]
[1721048376677,1.25258497,3350.3,3350.2,2.98489]
[1721048376977,1.83856266,3350.3,3350.2,2.98489]
[1721048377188,1.83856658,3350.3,3350.2,2.98489]
[1721048379188,0.58598161,3350.3,3350.2,2.98489]
[1721048379688,0.58594581,3350.3,3350.2,2.98489]
[1721048379993,0.58594567,3350.3,3350.2,2.98489]
[1721048380216,1.06682565,3350.3,3350.2,2.98489]
[1721048380557,1.06682565,3350.3,3350.2,5.96978]
[1721048380558,0.12741559,3350.3,3350.2,5.96978]
[1721048380864,1.06682565,3350.3,3350.2,5.96978]
[1721048381442,0.12741559,3350.3,3350.2,5.96978]
[1721048382248,1.06682565,3350.3,3350.2,5.96978]
[1721048383041,0.93941006,3350.3,3350.2,5.96978]
[1721048383589,1.06680434,3350.3,3350.2,5.96978]
[1721048384473,1.88765992,3350.3,3350.2,5.96978]
[1721048384644,4.27815992,3350.3,3350.2,5.96978]
[1721048385154,4.27815992,3350.3,3350.2,2.98489]
[1721048385352,4.27815992,3350.3,3350.0,2.98502]
[1721048385561,0.93965037,3350.1,3350.0,2.98502]
[1721048385740,0.93965037,3350.1,3349.9,2.98511]
[1721048385741,1.88783741,3350.1,3349.9,2.98511]
[1721048385940,1.06715309,3350.0,3349.9,2.98511]
[1721048386141,0.93975881,3350.0,3349.9,2.98511]
[1721048386404,0.93975881,3350.0,3349.9,4.07711]
[1721048386599,1.0672552,3350.0,3349.9,4.07711]
[1721048386964,1.06724318,3350.0,3349.9,4.07711]
[1721048387268,0.12748437,3350.0,3349.9,4.07711]
[1721048387467,0.62648465,3350.0,3349.9,4.07711]
[1721048387688,0.93975881,3350.1,3350.0,2.98507]
[1721048387847,0.93975881,3350.1,3350.0,5.97014]
[1721048388297,0.93977814,3350.1,3350.0,2.98507]
[1721048388494,1.06724515,3350.1,3350.0,2.98507]
[1721048388850,2.24154373,3350.1,3350.0,2.98507]
[1721048389161,2.36901074,3350.1,3350.0,2.98507]
[1721048389485,2.36901074,3350.1,3350.0,5.97014]
[1721048389486,1.887955,3350.1,3350.0,5.97014]
[1721048390690,1.887955,3350.1,3350.0,2.98507]
[1721048391049,1.887955,3350.1,3350.0,5.97014]
[1721048391249,1.887955,3350.1,3350.0,2.98507]
[1721048391987,3.14050615,3350.1,3350.0,2.98507]
[1721048392953,4.20677355,3350.1,3350.0,2.98507]
[1721048393147,5.63611726,3350.1,3350.0,2.98507]
[1721048396268,4.20677355,3350.1,3350.0,2.98507]
[1721048396588,5.6370846,3350.1,3350.0,2.98507]
[1721048396800,0.4587224,3350.1,3350.0,2.98507]
[1721048396947,2.5552276,3350.2,3350.1,2.98498]
[1721048397151,3.14159327,3350.2,3350.1,2.98498]
[1721048397975,3.14159327,3350.2,3350.1,5.96996]
[1721048397976,1.8881343,3350.2,3350.1,5.96996]
[1721048398781,3.14159327,3350.2,3350.1,5.96996]
[1721048399550,1.83980843,3350.2,3350.1,5.96996]
[1721048399851,3.14154509,3350.2,3350.1,5.96996]
[1721048400956,4.34178612,3350.2,3350.1,2.98498]
[1721048401169,4.34178612,3350.2,3349.7,2.9853]
[1721048401383,0.94010465,3349.9,3349.6,3.0]
[1721048401684,3.32720465,3349.9,3349.8,2.98525]
[1721048401899,3.45475308,3349.9,3349.8,2.98525]
[1721048402104,4.08225665,3349.9,3349.4,2.98556]
[1721048402405,1.2535791,3349.6,3349.2,2.98575]
[1721048402583,2.68301314,3349.5,3349.2,2.98575]
[1721048402827,0.94009473,3349.3,3349.2,2.98575]
[1721048403135,0.754252,3349.3,3349.2,5.97153]
[1721048403290,0.62669311,3349.4,3349.3,2.98569]
[1721048403485,0.12759668,3349.4,3349.3,2.98569]
[1721048404197,0.12759668,3349.4,3349.3,5.97138]
[1721048404384,0.62669311,3349.6,3349.1,2.3425]
[1721048404581,0.12753897,3349.5,3349.1,2.3425]
[1721048404787,0.62669311,3349.6,3349.5,5.97104]
[1721048404982,0.75423109,3349.6,3349.5,5.97104]
[1721048407204,1.06763271,3349.6,3349.5,5.97104]
[1721048407406,0.12753798,3349.6,3349.5,5.97104]
[1721048407605,1.06763271,3349.6,3349.5,2.98552]
[1721048408191,2.3871,3349.9,3349.5,2.98552]
[1721048408392,0.93951523,3349.6,3349.5,2.98552]
[1721048408824,0.93944673,3349.6,3349.5,2.98552]
[1721048409005,1.0669978,3349.6,3349.5,2.98552]
[1721048410454,0.12755107,3349.6,3349.5,2.98552]
[1721048410727,0.12755107,3349.6,3349.5,5.97104]
[1721048411033,0.62618804,3349.7,3349.6,5.97086]
[1721048411501,0.93944673,3349.9,3349.4,2.621]
[1721048411502,1.25234578,3350.0,3349.9,2.98516]
[1721048411704,3.14019107,3350.0,3349.9,2.98516]
[1721048413798,3.14019107,3350.0,3349.8,2.98518]
[1721048414130,1.88784529,3349.9,3349.8,2.98518]
[1721048414537,1.76040624,3349.9,3349.8,2.98518]
[1721048414732,1.88790852,3349.9,3349.8,2.98518]
[1721048415097,3.1402543,3349.9,3349.8,2.98518]
[1721048415340,1.88790852,3349.9,3349.8,2.98518]
[1721048415635,3.1402543,3349.9,3349.8,2.98518]
[1721048416415,2.4358,3349.8,3349.0,10.2659]
[1721048416734,2.4358,3349.8,3349.3,5.97138]
[1721048416735,0.62632093,3349.4,3349.3,5.97138]
[1721048417405,0.75382321,3349.4,3349.3,5.97138]
[1721048417875,0.45864338,3349.7,3349.6,2.98543]
[1721048418149,0.12756491,3349.7,3349.6,5.97086]
[1721048418643,0.62629632,3349.7,3349.6,5.97086]
[1721048419002,0.75386123,3349.7,3349.6,5.97086]
[1721048419927,1.06697595,3349.7,3349.6,5.97086]
[1721048420424,2.3881,3349.7,3349.6,2.98543]
[1721048420616,4.27630707,3349.7,3349.6,2.98543]
[1721048421043,2.84677882,3349.7,3349.6,2.98543]
[1721048421363,2.84677882,3349.7,3349.4,2.98556]
[1721048421364,4.22721343,3349.7,3349.4,2.98556]
[1721048421685,0.9397375,3349.5,3349.4,2.98556]
[1721048421885,1.067306,3349.5,3349.4,2.98556]
[1721048423446,0.9397375,3349.5,3349.4,2.98556]
[1721048423645,0.1275685,3349.5,3349.4,2.98556]
[1721048424080,1.067306,3349.5,3349.4,2.98556]
[1721048424396,0.1275685,3349.5,3349.4,2.98556]
[1721048424750,1.067306,3349.5,3349.4,2.98556]
[1721048425567,1.30207229,3349.5,3349.4,2.98556]
[1721048425781,0.58630643,3349.5,3349.4,2.98556]
[1721048426516,0.93955824,3349.5,3349.4,2.98556]
[1721048426715,1.06712674,3349.5,3349.4,2.98556]
[1721048427529,0.93955824,3349.6,3349.5,2.98552]
[1721048427665,0.62635466,3349.7,3349.6,5.97086]
[1721048427867,0.62635466,3349.8,3349.7,5.97068]
[1721048428131,0.62635466,3349.9,3349.8,5.9705]
[1721048428429,0.62635466,3350.1,3349.6,2.98538]
[1721048428569,0.62635466,3350.1,3350.0,5.97014]
[1721048428769,0.75374263,3350.1,3350.0,5.97014]
[1721048429383,0.12738797,3350.1,3350.0,5.97014]
[1721048429584,0.93956355,3350.2,3350.1,2.98498]
[1721048429792,1.06698918,3350.2,3350.1,2.98498]
[1721048430000,1.88777569,3350.2,3350.1,2.98498]
[1721048430201,3.1406418,3350.2,3350.1,2.98498]
[1721048430772,1.88777569,3350.2,3350.1,2.98498]
[1721048431120,3.1406418,3350.2,3350.0,5.97014]
[1721048431318,1.88777569,3350.1,3350.0,2.98507]
[1721048431639,3.1406418,3350.1,3350.0,2.98507]
[1721048431914,3.1406418,3350.1,3350.0,5.97014]
[1721048432573,1.88777569,3350.1,3350.0,5.97014]
[1721048432971,3.14066488,3350.1,3350.0,5.97014]
[1721048433510,1.88784181,3350.1,3350.0,5.97014]
[1721048433885,3.14070787,3350.1,3350.0,5.97014]
[1721048434106,3.14084274,3350.1,3350.0,5.97014]
[1721048434514,3.14086458,3350.1,3350.0,5.97014]
[1721048435223,3.14086458,3350.1,3350.0,2.98507]
[1721048435890,1.06718199,3350.1,3350.0,2.98507]
[1721048436089,1.25294073,3350.2,3350.1,2.98498]
[1721048436288,3.14081889,3350.2,3350.1,2.98498]
[1721048437218,1.83905393,3350.2,3350.1,2.98498]
[1721048437387,3.14084273,3350.2,3350.1,2.98498]
[1721048437589,1.06714539,3350.2,3350.1,2.98498]
[1721048437798,3.14080219,3350.2,3350.1,2.98498]
[1721048439227,1.88786146,3350.2,3350.1,2.98498]
[1721048439597,1.88786146,3350.2,3350.0,2.98505]
[1721048439915,3.14080126,3350.1,3350.0,2.98505]
[1721048440288,1.88786146,3350.1,3350.0,2.98505]
[1721048440486,0.58611944,3350.1,3350.0,2.98505]
[1721048440733,1.30179942,3350.1,3350.0,2.98505]
[1721048440892,1.88791886,3350.1,3350.0,5.97012]
[1721048441087,0.12748674,3350.1,3350.0,5.97012]
[1721048441512,1.06716532,3350.1,3350.0,5.97012]
[1721048441736,1.88794027,3350.2,3350.0,2.985]
[1721048441935,3.14082208,3350.1,3350.0,2.985]
[1721048442132,1.88794027,3350.1,3350.0,5.97007]
[1721048442338,2.3688873,3350.1,3350.0,5.97007]
[1721048443245,1.88787682,3350.1,3350.0,5.97007]
[1721048443742,1.88785874,3350.1,3350.0,5.97007]
[1721048443943,3.14074055,3350.1,3350.0,5.97007]
[1721048444124,3.14076034,3350.1,3350.0,5.97007]
[1721048446073,1.88788859,3350.1,3350.0,5.97007]
[1721048446772,2.36899668,3350.1,3350.0,5.97007]
[1721048446931,0.12741789,3350.1,3350.0,5.97007]
[1721048447132,0.93969107,3350.2,3350.0,2.985]
[1721048447358,1.06711883,3350.1,3350.0,5.97007]
[1721048447534,1.06711883,3350.1,3350.0,9.50514]
[1721048447535,0.7538505,3350.1,3350.0,9.50514]
[1721048447734,1.25287175,3350.4,3350.0,3.535]
[1721048447735,0.62642274,3350.3,3350.0,3.535]
[1721048448062,0.62642274,3350.3,3350.2,5.96978]
[1721048448231,0.62642274,3350.3,3350.2,6.51978]
[1721048448433,3.30929107,3350.5,3350.4,5.96942]
[1721048448637,4.25698163,3350.5,3350.4,5.96942]
[1721048449145,5.50985338,3350.5,3350.4,5.96942]
[1721048449523,4.25698163,3350.5,3350.4,5.96942]
[1721048450159,4.20825943,3350.5,3350.4,5.96942]
[1721048450348,4.25701617,3350.5,3350.4,5.96942]
[1721048453445,4.25699702,3350.5,3350.4,5.96942]
[1721048453652,4.25699164,3350.5,3350.4,5.96942]
[1721048454228,4.25699164,3350.5,3350.2,2.98485]
[1721048454559,3.75027175,3350.3,3349.7,2.98526]
[1721048454760,3.19472378,3349.8,3349.7,2.98526]
[1721048455063,3.32204729,3349.8,3349.7,2.98526]
[1721048455377,2.84133668,3349.8,3349.7,2.98526]
[1721048455668,5.39559935,3349.8,3349.7,2.98526]
[1721048456030,4.14330098,3349.8,3349.7,2.98526]
[1721048456237,0.12732351,3349.8,3349.7,6.5206]
[1721048456478,0.12732351,3349.8,3349.7,3.53534]
[1721048456479,0.62617813,3349.8,3349.7,3.53534]
[1721048456761,3.74109837,3350.1,3349.7,3.53534]
[1721048456762,2.4888,3350.1,3350.0,2.98507]
[1721048456988,3.42806325,3350.1,3350.0,3.53507]
[1721048457268,3.55546679,3350.1,3350.0,3.53507]
[1721048458459,3.07463536,3350.1,3350.0,3.53507]
[1721048458761,3.55544033,3350.1,3350.0,3.53507]
[1721048459150,3.07463364,3350.1,3350.0,3.53507]
[1721048459364,4.376421,3350.1,3350.0,3.53507]
[1721048459567,5.62871937,3350.1,3350.0,3.53507]
[1721048459778,4.24906235,3350.1,3350.0,3.53507]
[1721048459990,5.62889114,3350.1,3350.0,3.53507]
[1721048460673,5.62889114,3350.1,3350.0,0.55]
[1721048460880,5.62889114,3350.1,3349.9,3.53515]
[1721048461077,1.88771248,3350.0,3349.7,2.98529]
[1721048461385,3.61727866,3349.8,3349.5,2.98551]
[1721048461552,3.14040229,3349.7,3349.5,2.98551]
[1721048461877,3.14049156,3349.6,3349.5,2.98551]
[1721048462079,1.83858445,3349.6,3349.5,2.98551]
[1721048462387,3.14064741,3349.6,3349.5,2.98551]
[1721048462595,1.06670363,3349.6,3349.5,2.98551]
[1721048463206,1.06670363,3349.7,3349.6,5.97086]
[1721048463346,1.06676401,3349.7,3349.6,6.52086]
[1721048463799,1.88803,3349.7,3349.6,6.52086]
[1721048464008,1.2525191,3349.8,3349.6,6.52086]
[1721048464009,0.62612071,3349.8,3349.7,2.98534]
[1721048464285,0.62612071,3349.9,3349.8,2.98525]
[1721048464443,0.75353355,3349.9,3349.8,3.53525]
[1721048465586,0.75353355,3349.9,3349.8,6.5205]
[1721048466453,2.4557,3350.1,3349.8,3.53525]
[1721048466767,0.62612071,3350.2,3350.1,2.98498]
[1721048466968,0.1273589,3350.2,3350.1,2.98498]
[1721048467204,0.75340373,3350.2,3350.1,6.51996]
[1721048467521,0.62604483,3350.4,3350.3,5.9696]
[1721048467818,0.75333659,3350.4,3350.3,5.9696]